fUST/lending_fUST_20250708
["ID","MTS","AMOUNT","RATE_DAILY","PERIOD"]
[370342077,1751970648427,-4912.16130013,0.00019097,2]
[370342079,1751970648436,-4912.16130013,0.00019097,2]
[370342081,1751970648445,-388.06556868,0.00019097,2]
[370342083,1751970648457,-4524.09573145,0.00019097,2]
[370342085,1751970648467,-4912.16130013,0.00019097,2]
[370342087,1751970648477,-500.0,0.00019167,2]
[370342089,1751970648487,-460.0,0.00019178,2]
[370342091,1751970648497,-98137.74404292,0.00019251,7]
[370342109,1751970648662,-310.8355033,0.00019093,2]
[370342112,1751970648674,-1567.9924516,0.00019093,2]
[370342114,1751970648691,-602.0,0.00019093,2]
[370343138,1751971023784,200.0,0.00018,7]
[370343139,1751971033073,5000.0,0.00018001,2]
[370343140,1751971060336,23298.2792212,0.0001789,2]
[370343144,1751971597922,484.21825036,0.00018001,2]
[370343148,1751971763674,265.63430029,0.00018001,2]
[370343149,1751971780636,5000.0,0.00018001,2]
[370343150,1751971796522,5000.0,0.00018001,2]
[370343151,1751971812633,6164.8746642,0.00017601,2]
[370343152,1751971814097,5000.0,0.00018001,2]
[370343154,1751971830040,5000.0,0.00018001,2]
[370343189,1751971831963,-194.31870534,0.00018053,2]
[370343191,1751971831973,-168.0,0.0001816,2]
[370343193,1751971831982,-168.0,0.00018327,2]
[370343195,1751971831993,-168.0,0.00018413,2]
[370343197,1751971832002,-168.0,0.00018424,2]
[370343199,1751971832012,-168.0,0.00018457,2]
[370343201,1751971832021,-168.0,0.000186,2]
[370343203,1751971832031,-168.0,0.00018718,2]
[370343205,1751971832045,-292.0,0.00018799,2]
[370343207,1751971832055,-300.0,0.00018799,2]
[370343209,1751971832065,-1200.0,0.00018799,2]
[370343211,1751971832074,-159.5204994,0.000188,2]
[370343213,1751971832085,-307.518305,0.000188,2]
[370343215,1751971832095,-159.5204994,0.000188,2]
[370343217,1751971832104,-153.0,0.000188,2]
[370343219,1751971832115,-397.8289151,0.000188,2]
[370343221,1751971832125,-26363.69017086,0.000188,2]
[370343223,1751971832135,-924.766812,0.00018865,2]
[370343225,1751971832144,-1095.45549177,0.00018879,2]
[370343227,1751971832153,-690.642,0.00018888,2]
[370343230,1751971832163,-207.4,0.00018888,2]
[370343232,1751971832173,-1014.0,0.00018888,2]
[370343234,1751971832182,-500.0,0.00018889,2]
[370343236,1751971832191,-500.0,0.00018889,2]
[370343238,1751971832201,-500.0,0.00018889,2]
[370343240,1751971832210,-500.0,0.00018889,2]
[370343242,1751971832219,-500.0,0.00018889,2]
[370343244,1751971832228,-500.0,0.00018889,2]
[370343246,1751971832238,-500.0,0.00018889,2]
[370343248,1751971832247,-500.0,0.00018889,2]
[370343250,1751971832257,-500.0,0.00018889,2]
[370343252,1751971832266,-500.0,0.00018889,2]
[370343254,1751971832276,-500.0,0.00018889,2]
[370343256,1751971832285,-255.13,0.0001889,3]
[370343258,1751971832294,-255.13,0.0001889,3]
[370343260,1751971832303,-340.18,0.0001889,3]
[370343262,1751971832312,-170.09,0.0001889,3]
[370343264,1751971832323,-510.27,0.0001889,3]
[370343266,1751971832332,-524.90154475,0.00018899,2]
[370343268,1751971832341,-500.0,0.00018899,2]
[370343270,1751971832350,-500.0,0.00018899,2]
[370343272,1751971832360,-500.0,0.00018899,2]
[370343274,1751971832369,-500.0,0.00018899,2]
[370343276,1751971832378,-500.0,0.00018899,2]
[370343278,1751971832387,-500.0,0.00018899,2]
[370343280,1751971832396,-500.0,0.00018899,2]
[370343282,1751971832405,-500.0,0.00018899,2]
[370343284,1751971832414,-500.0,0.00018899,2]
[370343286,1751971832423,-500.0,0.00018899,2]
[370343288,1751971832433,-500.0,0.00018899,2]
[370343290,1751971832442,-500.0,0.00018899,2]
[370343292,1751971832451,-500.0,0.00018899,2]
[370343294,1751971832460,-500.0,0.00018899,2]
[370343296,1751971832469,-500.0,0.00018899,2]
[370343298,1751971832479,-500.0,0.00018899,2]
[370343300,1751971832487,-500.0,0.00018899,2]
[370343302,1751971832496,-2674.29388588,0.00018899,2]
[370343304,1751971832505,-2674.29388588,0.00018899,2]
[370343306,1751971832515,-2674.29388588,0.00018899,2]
[370343308,1751971832524,-2674.29388588,0.00018899,2]
[370343310,1751971832533,-2674.29388588,0.00018899,2]
[370343312,1751971832542,-1362.65667115,0.00018899,2]
[370343314,1751971832554,-1311.63721473,0.00018899,2]
[370343316,1751971832563,-2674.29388588,0.00018899,2]
[370343317,1751971832572,-2674.29388588,0.00018899,2]
[370343329,1751971832705,-2674.29388588,0.00018899,2]
[370343331,1751971832716,-2674.29388588,0.00018899,2]
[370343333,1751971832726,-178.19643398,0.00018899,2]
[370343335,1751971832735,-5559.51826323,0.000189,2]
[370343384,1751971837728,-500.0,0.00018897,2]
[370343386,1751971837738,-354.58828053,0.00018897,2]
[370343388,1751971837748,-500.0,0.00018897,2]
[370343390,1751971837757,-500.0,0.00018897,2]
[370343392,1751971837766,-239.03728699,0.00018897,2]
[370343395,1751971837783,-260.96271301,0.00018897,2]
[370343397,1751971837792,-500.0,0.00018897,2]
[370343399,1751971837801,-256.18424882,0.00018897,2]
[370343401,1751971837810,-499.6350918,0.00018897,2]
[370343403,1751971837819,-355486.66019509,0.000189,2]
[370343405,1751971837829,-151.0,0.000189,2]
[370343407,1751971837840,-281.2897092,0.000189,2]
[370343409,1751971837849,-716.195754,0.00018943,2]
[370343411,1751971837858,-742.6949969,0.00018998,2]
[370343413,1751971837868,-151.0,0.00019,2]
[370343415,1751971837877,-151.0,0.00019,2]
[370343417,1751971837886,-153.0,0.00019,2]
[370343419,1751971837893,-173.189051,0.00019,2]
[370343421,1751971837903,-181.4397469,0.00019,2]
[370343423,1751971837912,-159.5204994,0.00019,2]
[370343425,1751971837921,-177.7959578,0.00019,2]
[370343427,1751971837931,-153.0,0.00019,2]
[370343429,1751971837940,-428.6046964,0.00019,2]
[370343431,1751971837949,-1000.0,0.00019,2]
[370343433,1751971837959,-159.5204994,0.00019,2]
[370343435,1751971837968,-576.1435385,0.00019,2]
[370343437,1751971837978,-159.5204994,0.00019,2]
[370343439,1751971837988,-576.1435385,0.00019,2]
[370343441,1751971837998,-153.0,0.00019,2]
[370343443,1751971838007,-574.3165307,0.00019,2]
[370343445,1751971838017,-2968.52763747,0.00019,2]
[370343447,1751971838026,-770.17471178,0.00019053,2]
[370343449,1751971838038,-3407.1720451,0.00019093,2]
[370343451,1751971838048,-151.0,0.000191,2]
[370343453,1751971838058,-151.0,0.000191,2]
[370343455,1751971838067,-167.524826,0.000191,2]
[370343457,1751971838076,-167.524826,0.000191,2]
[370343459,1751971838088,-167.524826,0.000191,2]
[370343461,1751971838097,-167.524826,0.000191,2]
[370343463,1751971838107,-502.14975,0.000191,2]
[370343465,1751971838117,-502.14975,0.000191,2]
[370343467,1751971838127,-151.0,0.000191,2]
[370343469,1751971838136,-151.0,0.000191,2]
[370343471,1751971838145,-151.0,0.000191,2]
[370343473,1751971838154,-264.669016,0.000191,2]
[370343475,1751971838163,-264.669016,0.000191,2]
[370343477,1751971838172,-264.669016,0.000191,2]
[370343479,1751971838183,-264.669016,0.000191,2]
[370343481,1751971838191,-151.0,0.000191,2]
[370343483,1751971838201,-151.0,0.000191,2]
[370343485,1751971838211,-159.419579,0.000191,2]
[370343487,1751971838221,-159.419579,0.000191,2]
[370343489,1751971838230,-159.419579,0.000191,2]
[370343491,1751971838239,-159.419579,0.000191,2]
[370343493,1751971838248,-151.0,0.000191,2]
[370343495,1751971838257,-151.0,0.000191,2]
[370343497,1751971838266,-151.0,0.000191,2]
[370343499,1751971838276,-151.0,0.000191,2]
[370343501,1751971838286,-151.0,0.000191,2]
[370343503,1751971838295,-152.714907,0.000191,2]
[370343505,1751971838304,-151.0,0.000191,2]
[370343507,1751971838313,-151.0,0.000191,2]
[370343509,1751971838323,-798.67117612,0.00019108,2]
[370343511,1751971838332,-2968.5276374,0.00019141,2]
[370343513,1751971838342,-280.25047963,0.00019163,2]
[370343515,1751971838351,-500.0,0.00019173,2]
[370343517,1751971838361,-502.73325811,0.00019173,2]
[370343519,1751971838371,-500.91232149,0.00019173,2]
[370343521,1751971838380,-500.0,0.00019173,2]
[370343523,1751971838389,-500.0,0.00019173,2]
[370343525,1751971838398,-500.0,0.00019173,2]
[370343527,1751971838408,-500.0,0.00019173,2]
[370343529,1751971838418,-500.0,0.00019173,2]
[370343531,1751971838427,-500.0,0.00019173,2]
[370343533,1751971838436,-500.0,0.00019173,2]
[370343535,1751971838446,-500.0,0.00019173,2]
[370343538,1751971838456,-500.97963928,0.00019173,2]
[370343540,1751971838465,-500.0,0.00019173,2]
[370343542,1751971838474,-500.0,0.00019173,2]
[370343544,1751971838484,-500.0,0.00019173,2]
[370343546,1751971838493,-500.71708084,0.00019173,2]
[370343548,1751971838503,-500.0,0.00019173,2]
[370343550,1751971838513,-500.0,0.00019173,2]
[370343552,1751971838522,-491.04253568,0.00019173,2]
[370343554,1751971838531,-290.74177825,0.00019173,2]
[370343556,1751971838540,-500.0,0.00019173,2]
[370343558,1751971838549,-445.29168093,0.00019173,2]
[370343560,1751971838559,-500.0,0.00019173,2]
[370343562,1751971838568,-500.0,0.00019173,2]
[370343564,1751971838577,-500.84765489,0.00019173,2]
[370343566,1751971838588,-500.0,0.00019173,2]
[370343568,1751971838598,-610.90694619,0.00019173,2]
[370343570,1751971838607,-500.0,0.00019173,2]
[370343572,1751971838616,-151.0,0.00019176,2]
[370343574,1751971838626,-156.151714,0.00019178,2]
[370343576,1751971838636,-460.0,0.00019178,2]
[370343578,1751971838645,-460.0,0.00019178,2]
[370343580,1751971838654,-587.97668222,0.00019178,2]
[370343581,1751971838663,-460.0,0.00019178,2]
[370343582,1751971838672,-460.0,0.00019178,2]
[370343583,1751971838681,-460.0,0.00019178,2]
[370343584,1751971838691,-460.0,0.00019178,2]
[370343585,1751971838700,-460.0,0.00019178,2]
[370343586,1751971838710,-460.0,0.00019178,2]
[370343587,1751971838719,-460.0,0.00019178,2]
[370343588,1751971838728,-151.0,0.00019178,2]
[370343589,1751971838738,-151.0,0.00019178,2]
[370343590,1751971838747,-151.0,0.00019178,2]
[370343591,1751971838756,-151.0,0.00019178,2]
[370343592,1751971838766,-461.44317948,0.00019178,2]
[370343593,1751971838775,-151.0,0.00019178,2]
[370343594,1751971838785,-151.0,0.00019178,2]
[370343595,1751971838794,-233.533026,0.00019178,2]
[370343596,1751971838803,-460.0,0.00019178,2]
[370343597,1751971838813,-460.0,0.00019178,2]
[370343598,1751971838822,-460.0,0.00019178,2]
[370343599,1751971838831,-460.0,0.00019178,2]
[370343600,1751971838844,-460.0,0.00019178,2]
[370343601,1751971838853,-167.524826,0.00019178,2]
[370343602,1751971838862,-151.0,0.00019178,2]
[370343603,1751971838873,-167.524826,0.00019178,2]
[370343604,1751971838884,-151.0,0.00019178,2]
[370343612,1751971839000,-167.524826,0.00019178,2]
[370343614,1751971839011,-151.0,0.00019178,2]
[370343616,1751971839020,-167.524826,0.00019178,2]
[370343618,1751971839030,-191.947854,0.00019178,2]
[370343620,1751971839043,-167.524826,0.00019178,2]
[370343622,1751971839053,-460.0,0.00019178,2]
[370343624,1751971839063,-167.524826,0.00019178,2]
[370343626,1751971839072,-167.524826,0.00019178,2]
[370343628,1751971839081,-167.524826,0.00019178,2]
[370343630,1751971839092,-167.524826,0.00019178,2]
[370343632,1751971839102,-167.524826,0.00019178,2]
[370343634,1751971839112,-167.524826,0.00019178,2]
[370343636,1751971839122,-167.524826,0.00019178,2]
[370343638,1751971839131,-167.524826,0.00019178,2]
[370343640,1751971839142,-167.524826,0.00019178,2]
[370343642,1751971839151,-460.0,0.00019178,2]
[370343644,1751971839161,-368.97961122,0.00019178,2]
[370343646,1751971839170,-460.0,0.00019178,2]
[370343648,1751971839180,-460.0,0.00019178,2]
[370343650,1751971839189,-460.79452111,0.00019178,2]
[370343652,1751971839199,-502.14975,0.00019178,2]
[370343654,1751971839208,-502.14975,0.00019178,2]
[370343656,1751971839218,-502.14975,0.00019178,2]
[370343658,1751971839227,-502.14975,0.00019178,2]
[370343660,1751971839237,-502.14975,0.00019178,2]
[370343662,1751971839246,-502.14975,0.00019178,2]
[370343664,1751971839256,-502.14975,0.00019178,2]
[370343666,1751971839265,-502.14975,0.00019178,2]
[370343668,1751971839274,-502.14975,0.00019178,2]
[370343670,1751971839284,-502.14975,0.00019178,2]
[370343672,1751971839294,-502.14975,0.00019178,2]
[370343674,1751971839303,-502.14975,0.00019178,2]
[370343676,1751971839312,-460.0,0.00019178,2]
[370343678,1751971839321,-461.49991213,0.00019178,2]
[370343680,1751971839331,-460.0,0.00019178,2]
[370343682,1751971839341,-460.0,0.00019178,2]
[370343684,1751971839351,-462.13907283,0.00019178,2]
[370343686,1751971839360,-460.0,0.00019178,2]
[370343688,1751971839370,-460.0,0.00019178,2]
[370343690,1751971839379,-460.0,0.00019178,2]
[370343692,1751971839389,-463.66922719,0.00019178,2]
[370343694,1751971839398,-201.14919503,0.00019178,2]
[370343696,1751971839407,-460.0,0.00019178,2]
[370343698,1751971839416,-513.00595829,0.00019178,2]
[370343700,1751971839426,-460.0,0.00019178,2]
[370343702,1751971839435,-460.0,0.00019178,2]
[370343704,1751971839444,-460.0,0.00019178,2]
[370343706,1751971839454,-460.0,0.00019178,2]
[370343708,1751971839463,-462.58732917,0.00019178,2]
[370343710,1751971839473,-264.669016,0.00019178,2]
[370343713,1751971839483,-460.0,0.00019178,2]
[370343716,1751971839492,-264.669016,0.00019178,2]
[370343719,1751971839502,-264.669016,0.00019178,2]
[370343722,1751971839511,-264.669016,0.00019178,2]
[370343725,1751971839521,-264.669016,0.00019178,2]
[370343728,1751971839530,-264.669016,0.00019178,2]
[370343730,1751971839540,-264.669016,0.00019178,2]
[370343733,1751971839550,-264.669016,0.00019178,2]
[370343736,1751971839561,-264.669016,0.00019178,2]
[370343739,1751971839571,-264.669016,0.00019178,2]
[370343742,1751971839580,-264.669016,0.00019178,2]
[370343745,1751971839590,-264.669016,0.00019178,2]
[370343748,1751971839600,-460.0,0.00019178,2]
[370343751,1751971839609,-460.0,0.00019178,2]
[370343754,1751971839618,-382.58726832,0.00019178,2]
[370343756,1751971839627,-264.669016,0.00019178,2]
[370343758,1751971839637,-264.669016,0.00019178,2]
[370343760,1751971839646,-264.669016,0.00019178,2]
[370343762,1751971839655,-460.0,0.00019178,2]
[370343764,1751971839664,-264.669019,0.00019178,2]
[370343766,1751971839674,-460.0,0.00019178,2]
[370343768,1751971839683,-460.0,0.00019178,2]
[370343770,1751971839692,-465.44908947,0.00019178,2]
[370343772,1751971839701,-460.0,0.00019178,2]
[370343774,1751971839710,-460.0,0.00019178,2]
[370343776,1751971839719,-283.669635,0.00019178,2]
[370343778,1751971839728,-460.0,0.00019178,2]
[370343780,1751971839738,-460.0,0.00019178,2]
[370343782,1751971839747,-460.0,0.00019178,2]
[370343784,1751971839756,-501.13340853,0.00019178,2]
[370343786,1751971839766,-460.0,0.00019178,2]
[370343788,1751971839775,-460.0,0.00019178,2]
[370343790,1751971839784,-460.0,0.00019178,2]
[370343792,1751971839793,-460.0,0.00019178,2]
[370343794,1751971839803,-461.53677414,0.00019178,2]
[370343796,1751971839813,-410.88321512,0.00019178,2]
[370343798,1751971839822,-460.0,0.00019178,2]
[370343800,1751971839832,-460.0,0.00019178,2]
[370343803,1751971839843,-460.0,0.00019178,2]
[370343805,1751971839853,-460.0,0.00019178,2]
[370343807,1751971839861,-244.87495708,0.00019178,2]
[370343809,1751971839871,-460.0,0.00019178,2]
[370343811,1751971839880,-247.03172145,0.00019178,2]
[370343813,1751971839889,-460.0,0.00019178,2]
[370343815,1751971839898,-460.0,0.00019178,2]
[370343817,1751971839908,-460.0,0.00019178,2]
[370343819,1751971839917,-460.0,0.00019178,2]
[370343821,1751971839926,-460.0,0.00019178,2]
[370343823,1751971839935,-460.0,0.00019178,2]
[370343825,1751971839945,-460.0,0.00019178,2]
[370343827,1751971839954,-159.419579,0.00019178,2]
[370343829,1751971839963,-159.419579,0.00019178,2]
[370343831,1751971839972,-159.419579,0.00019178,2]
[370343833,1751971839982,-159.419579,0.00019178,2]
[370343835,1751971839991,-159.419579,0.00019178,2]
[370343837,1751971840000,-169.00538143,0.00019178,2]
[370343839,1751971840009,-159.419579,0.00019178,2]
[370343841,1751971840019,-159.419579,0.00019178,2]
[370343843,1751971840030,-460.0,0.00019178,2]
[370343845,1751971840042,-159.419579,0.00019178,2]
[370343846,1751971840053,-159.419579,0.00019178,2]
[370343848,1751971840063,-460.0,0.00019178,2]
[370343851,1751971840074,-159.419579,0.00019178,2]
[370343853,1751971840084,-159.419579,0.00019178,2]
[370343855,1751971840094,-460.0,0.00019178,2]
[370343857,1751971840104,-159.419579,0.00019178,2]
[370343859,1751971840116,-159.419579,0.00019178,2]
[370343861,1751971840125,-460.0,0.00019178,2]
[370343863,1751971840134,-159.419579,0.00019178,2]
[370343865,1751971840144,-460.0,0.00019178,2]
[370343867,1751971840154,-159.419579,0.00019178,2]
[370343869,1751971840163,-460.0,0.00019178,2]
[370343871,1751971840173,-159.41957,0.00019178,2]
[370343873,1751971840183,-460.0,0.00019178,2]
[370343875,1751971840193,-496.81061569,0.00019178,2]
[370343877,1751971840204,-460.0,0.00019178,2]
[370343879,1751971840214,-460.0,0.00019178,2]
[370343881,1751971840223,-263.00981295,0.00019178,2]
[370343883,1751971840233,-402.47879656,0.00019178,2]
[370343885,1751971840243,-460.0,0.00019178,2]
[370343887,1751971840252,-460.0,0.00019178,2]
[370343889,1751971840262,-460.0,0.00019178,2]
[370343891,1751971840272,-1799.64212687,0.00019178,2]
[370343893,1751971840281,-151.0,0.00019178,2]
[370343895,1751971840291,-151.0,0.00019178,2]
[370343897,1751971840300,-151.000001,0.00019178,2]
[370343899,1751971840310,-460.0,0.00019178,2]
[370343901,1751971840319,-460.0,0.00019178,2]
[370343903,1751971840328,-151.0,0.00019178,2]
[370343905,1751971840338,-460.0,0.00019178,2]
[370343907,1751971840347,-151.0,0.00019178,2]
[370343909,1751971840356,-460.0,0.00019178,2]
[370343911,1751971840366,-151.0,0.00019178,2]
[370343913,1751971840375,-151.0,0.00019178,2]
[370343915,1751971840384,-153.042549,0.00019178,2]
[370343917,1751971840393,-460.0,0.00019178,2]
[370343919,1751971840403,-460.0,0.00019178,2]
[370343921,1751971840413,-151.0,0.00019178,2]
[370343923,1751971840423,-460.0,0.00019178,2]
[370343925,1751971840432,-460.0,0.00019178,2]
[370343927,1751971840441,-151.0,0.00019178,2]
[370343929,1751971840450,-460.0,0.00019178,2]
[370343931,1751971840460,-460.0,0.00019178,2]
[370343933,1751971840469,-460.0,0.00019178,2]
[370343935,1751971840479,-460.0,0.00019178,2]
[370343937,1751971840489,-460.0,0.00019178,2]
[370343939,1751971840499,-406.90028393,0.00019178,2]
[370343941,1751971840509,-460.0,0.00019178,2]
[370343943,1751971840518,-460.0,0.00019178,2]
[370343945,1751971840527,-460.0,0.00019178,2]
[370343947,1751971840537,-460.0,0.00019178,2]
[370343949,1751971840546,-460.0,0.00019178,2]
[370343951,1751971840556,-460.0,0.00019178,2]
[370343953,1751971840565,-460.0,0.00019178,2]
[370343955,1751971840575,-460.0,0.00019178,2]
[370343957,1751971840585,-460.0,0.00019178,2]
[370343959,1751971840595,-186.600729,0.00019178,2]
[370343961,1751971840605,-460.0,0.00019178,2]
[370343963,1751971840616,-460.0,0.00019178,2]
[370343965,1751971840625,-460.0,0.00019178,2]
[370343967,1751971840634,-460.0,0.00019178,2]
[370343969,1751971840643,-460.0,0.00019178,2]
[370343971,1751971840653,-460.0,0.00019178,2]
[370343973,1751971840662,-506.18088994,0.00019178,2]
[370343975,1751971840672,-292.64684706,0.00019178,2]
[370343977,1751971840681,-460.0,0.00019178,2]
[370343979,1751971840691,-460.0,0.00019178,2]
[370343981,1751971840700,-460.0,0.00019178,2]
[370343983,1751971840709,-460.0,0.00019178,2]
[370343985,1751971840719,-460.0,0.00019178,2]
[370343987,1751971840728,-460.0,0.00019178,2]
[370343989,1751971840737,-460.0,0.00019178,2]
[370343991,1751971840746,-460.0,0.00019178,2]
[370343993,1751971840756,-460.0,0.00019178,2]
[370343995,1751971840766,-460.0,0.00019178,2]
[370343997,1751971840775,-500.0,0.00019178,2]
[370343999,1751971840785,-460.0,0.00019178,2]
[370344001,1751971840794,-460.48746088,0.00019178,2]
[370344004,1751971840805,-460.0,0.00019178,2]
[370344006,1751971840814,-460.0,0.00019178,2]
[370344007,1751971840825,-460.0,0.00019178,2]
[370344009,1751971840835,-460.0,0.00019178,2]
[370344012,1751971840845,-460.0,0.00019178,2]
[370344014,1751971840854,-526.94443348,0.00019178,2]
[370344016,1751971840863,-460.0,0.00019178,2]
[370344018,1751971840873,-460.0,0.00019178,2]
[370344020,1751971840883,-460.0,0.00019178,2]
[370344022,1751971840892,-460.0,0.00019178,2]
[370344024,1751971840902,-460.0,0.00019178,2]
[370344026,1751971840911,-460.0,0.00019178,2]
[370344028,1751971840922,-550.62227366,0.00019178,2]
[370344030,1751971840931,-460.0,0.00019178,2]
[370344032,1751971840940,-460.0,0.00019178,2]
[370344034,1751971840949,-460.0,0.00019178,2]
[370344036,1751971840958,-460.0,0.00019178,2]
[370344037,1751971840967,-460.0,0.00019178,2]
[370344049,1751971840976,-460.0,0.00019178,2]
[370344051,1751971841080,-151.0,0.00019178,2]
[370344053,1751971841090,-460.0,0.00019178,2]
[370344055,1751971841100,-313.11084983,0.00019178,2]
[370344057,1751971841108,-460.0,0.00019178,2]
[370344059,1751971841117,-460.0,0.00019178,2]
[370344061,1751971841127,-460.0,0.00019178,2]
[370344063,1751971841136,-460.0,0.00019178,2]
[370344065,1751971841145,-460.0,0.00019178,2]
[370344067,1751971841155,-460.0,0.00019178,2]
[370344069,1751971841165,-460.0,0.00019178,2]
[370344071,1751971841175,-460.0,0.00019178,2]
[370344073,1751971841184,-460.0,0.00019178,2]
[370344075,1751971841193,-460.0,0.00019178,2]
[370344077,1751971841202,-460.0,0.00019178,2]
[370344079,1751971841214,-460.0,0.00019178,2]
[370344081,1751971841223,-460.0,0.00019178,2]
[370344083,1751971841232,-460.0,0.00019178,2]
[370344085,1751971841241,-151.0,0.00019178,2]
[370344087,1751971841251,-526.76955712,0.00019178,2]
[370344089,1751971841260,-460.63893389,0.00019178,2]
[370344091,1751971841269,-378.1049792,0.00019178,2]
[370344093,1751971841278,-460.0,0.00019178,2]
[370344095,1751971841287,-460.0,0.00019178,2]
[370344097,1751971841296,-460.0,0.00019178,2]
[370344099,1751971841305,-460.0,0.00019178,2]
[370344101,1751971841315,-460.0,0.00019178,2]
[370344103,1751971841324,-460.0,0.00019178,2]
[370344105,1751971841333,-460.0,0.00019178,2]
[370344107,1751971841343,-460.0,0.00019178,2]
[370344109,1751971841352,-444.35659106,0.00019178,2]
[370344111,1751971841362,-460.0,0.00019178,2]
[370344113,1751971841371,-460.0,0.00019178,2]
[370344115,1751971841380,-460.0,0.00019178,2]
[370344117,1751971841390,-460.53389228,0.00019178,2]
[370344119,1751971841399,-460.0,0.00019178,2]
[370344121,1751971841408,-151.0,0.00019178,2]
[370344123,1751971841417,-212.325124,0.00019178,2]
[370344125,1751971841428,-461.88848629,0.00019178,2]
[370344127,1751971841437,-609.46506637,0.00019178,2]
[370344129,1751971841447,-460.0,0.00019178,2]
[370344131,1751971841456,-460.0,0.00019178,2]
[370344133,1751971841466,-460.0,0.00019178,2]
[370344135,1751971841475,-460.0,0.00019178,2]
[370344138,1751971841484,-460.0,0.00019178,2]
[370344140,1751971841494,-460.0,0.00019178,2]
[370344141,1751971841503,-498.35,0.00019178,2]
[370344143,1751971841512,-460.0,0.00019178,2]
[370344145,1751971841522,-460.0,0.00019178,2]
[370344148,1751971841531,-460.0,0.00019178,2]
[370344149,1751971841540,-460.0,0.00019178,2]
[370344151,1751971841549,-502.42619323,0.00019178,2]
[370344153,1751971841559,-460.0,0.00019178,2]
[370344155,1751971841568,-460.0,0.00019178,2]
[370344158,1751971841579,-460.0,0.00019178,2]
[370344160,1751971841589,-468.15749242,0.00019178,2]
[370344162,1751971841598,-314.01683858,0.00019178,2]
[370344164,1751971841607,-151.0,0.00019178,2]
[370344166,1751971841616,-569.87,0.00019178,2]
[370344168,1751971841626,-460.0,0.00019178,2]
[370344170,1751971841634,-460.0,0.00019178,2]
[370344172,1751971841643,-460.0,0.00019178,2]
[370344174,1751971841652,-460.0,0.00019178,2]
[370344176,1751971841661,-460.0,0.00019178,2]
[370344178,1751971841671,-460.0,0.00019178,2]
[370344180,1751971841680,-151.0,0.00019178,2]
[370344181,1751971841689,-460.0,0.00019178,2]
[370344184,1751971841699,-460.0,0.00019178,2]
[370344185,1751971841709,-460.0,0.00019178,2]
[370344188,1751971841718,-460.0,0.00019178,2]
[370344189,1751971841727,-460.0,0.00019178,2]
[370344191,1751971841737,-460.0,0.00019178,2]
[370344193,1751971841748,-447.13246169,0.00019178,2]
[370344196,1751971841758,-151.28600357,0.00019178,2]
[370344198,1751971841767,-151.25282475,0.00019178,2]
[370344200,1751971841776,-460.0,0.00019178,2]
[370344202,1751971841785,-460.0,0.00019178,2]
[370344204,1751971841794,-460.0,0.00019178,2]
[370344206,1751971841805,-460.0,0.00019178,2]
[370344208,1751971841816,-460.0,0.00019178,2]
[370344210,1751971841826,-460.0,0.00019178,2]
[370344212,1751971841836,-460.0,0.00019178,2]